bitfinex/quotes_BTCUSD_20240811
["timestamp","ask_amount","ask_price","bid_price","bid_amount"]
[1723340408297,0.000832,61155.0,61154.0,0.718125]
[1723340408471,0.000832,61155.0,61154.0,0.85392996]
[1723340409456,0.000832,61155.0,61154.0,0.718125]
[1723340409657,0.000832,61155.0,61154.0,0.85392335]
[1723340409858,0.001832,61155.0,61154.0,0.88192335]
[1723340410055,0.000832,61155.0,61154.0,0.86792335]
[1723340410267,0.000832,61155.0,61154.0,1.09685335]
[1723340410663,0.000832,61155.0,61154.0,1.08285335]
[1723340411422,0.001832,61155.0,61154.0,1.09685335]
[1723340411968,0.001832,61155.0,61154.0,1.11085335]
[1723340412177,0.001832,61155.0,61154.0,1.26066827]
[1723340412348,0.001832,61155.0,61154.0,1.51859827]
[1723340412349,0.000832,61155.0,61154.0,1.51859827]
[1723340412561,0.001832,61155.0,61154.0,1.94828174]
[1723340412719,0.001832,61155.0,61154.0,1.93428174]
[1723340412937,0.000832,61155.0,61154.0,1.93427614]
[1723340413221,0.001832,61155.0,61154.0,1.94827614]
[1723340413425,0.001832,61155.0,61154.0,1.95819287]
[1723340413608,0.001832,61155.0,61154.0,1.95782946]
[1723340414355,0.001832,61155.0,61154.0,1.77018917]
[1723340414562,0.001832,61155.0,61154.0,1.60046678]
[1723340414759,0.001832,61155.0,61154.0,1.59447088]
[1723340415185,0.001832,61155.0,61154.0,1.64336501]
[1723340415383,0.001832,61155.0,61154.0,1.59447088]
[1723340415661,0.001832,61155.0,61154.0,1.64936501]
[1723340416054,0.001832,61155.0,61154.0,1.59447088]
[1723340416252,0.001832,61155.0,61154.0,1.64336501]
[1723340416458,0.001832,61155.0,61154.0,1.6433642]
[1723340416965,0.001832,61155.0,61154.0,1.50358002]
[1723340417403,0.001832,61155.0,61154.0,1.55247415]
[1723340417520,0.001832,61155.0,61154.0,1.62036396]
[1723340418293,0.001832,61155.0,61154.0,1.55247415]
[1723340419031,0.001832,61155.0,61154.0,1.58147415]
[1723340419233,0.001832,61155.0,61154.0,1.82136394]
[1723340419446,0.001832,61155.0,61154.0,1.845811]
[1723340419862,0.001832,61155.0,61154.0,1.64214111]
[1723340420060,0.001832,61155.0,61154.0,1.84580353]
[1723340420308,0.001832,61155.0,61154.0,1.83180353]
[1723340420900,0.001832,61155.0,61154.0,1.81780353]
[1723340421103,0.000832,61155.0,61154.0,1.81780943]
[1723340421458,0.000832,61155.0,61154.0,1.83180943]
[1723340421858,0.000832,61155.0,61154.0,1.84580943]
[1723340422238,0.000832,61155.0,61154.0,1.59446234]
[1723340422440,0.000832,61155.0,61154.0,1.57547112]
[1723340423549,0.000832,61155.0,61154.0,1.58147516]
[1723340423784,0.000832,61155.0,61154.0,1.58239036]
[1723340423943,0.000832,61155.0,61154.0,1.58239037]
[1723340425353,0.000832,61155.0,61154.0,1.65027988]
[1723340425997,0.000832,61155.0,61154.0,1.65027734]
[1723340426201,0.000832,61155.0,61154.0,1.58238784]
[1723340426411,0.000832,61155.0,61154.0,1.65027761]
[1723340426631,0.000832,61155.0,61154.0,2.09084442]
[1723340426855,0.000832,61155.0,61154.0,2.38953025]
[1723340427031,0.000832,61164.0,61162.0,1.03605]
[1723340427271,0.000832,61164.0,61162.0,2.09280147]
[1723340427488,0.000832,61164.0,61162.0,2.17253571]
[1723340427669,0.000832,61164.0,61162.0,1.9950357]
[1723340428547,0.000832,61164.0,61162.0,2.08232224]
[1723340429405,0.000832,61164.0,61162.0,2.25982225]
[1723340429617,0.000832,61164.0,61162.0,2.0230357]
[1723340429813,0.000832,61164.0,61162.0,2.20053571]
[1723340430012,0.000832,61164.0,61162.0,2.11268925]
[1723340430218,0.000832,61164.0,61162.0,1.93518924]
[1723340430398,0.000832,61164.0,61162.0,1.94510197]
[1723340430534,0.000832,61164.0,61162.0,1.38986492]
[1723340430794,0.000832,61164.0,61162.0,1.59350172]
[1723340431427,0.000832,61164.0,61162.0,1.57950172]
[1723340431641,0.000832,61164.0,61162.0,1.59350172]
[1723340431841,0.000832,61164.0,61162.0,1.57950172]
[1723340433460,0.000832,61164.0,61162.0,1.51162279]
[1723340433683,0.000832,61164.0,61162.0,1.35762279]
[1723340434442,0.000832,61164.0,61162.0,1.12873109]
[1723340434687,0.00963552,61164.0,61162.0,1.12873109]
[1723340435279,0.00963552,61164.0,61162.0,0.96491617]
[1723340441456,0.00963552,61164.0,61162.0,0.82915]
[1723340441815,0.00963552,61164.0,61162.0,0.96492054]
[1723340444201,0.09203552,61163.0,61162.0,0.73602054]
[1723340444380,0.15593552,61163.0,61162.0,0.73602054]
[1723340444729,0.15593552,61163.0,61162.0,0.14245]
[1723340444954,0.15593552,61163.0,61162.0,0.50712917]
[1723340445305,0.15593552,61163.0,61162.0,0.47912917]
[1723340445306,0.15793552,61163.0,61162.0,0.47912917]
[1723340445540,0.15793552,61163.0,61162.0,0.37135]
[1723340445714,0.15793552,61163.0,61162.0,0.49313304]
[1723340445961,0.15793552,61163.0,61162.0,0.014]
[1723340446125,0.15793552,61163.0,61162.0,0.14978313]
[1723340446325,0.15793552,61163.0,61162.0,0.26423313]
[1723340446531,0.15793552,61163.0,61162.0,0.49313313]
[1723340447252,0.00963552,61163.0,61162.0,0.73603313]
[1723340447482,0.00963552,61163.0,61162.0,0.93693313]
[1723340447698,0.00963552,61163.0,61162.0,0.95893313]
[1723340447869,0.00963552,61163.0,61162.0,0.95093313]
[1723340448048,0.00963552,61163.0,61162.0,0.93693313]
[1723340448460,0.000832,61163.0,61162.0,0.94893313]
[1723340448704,0.000832,61163.0,61162.0,0.96293313]
[1723340448907,0.00963552,61163.0,61162.0,0.96293313]
[1723340449109,0.00963552,61163.0,61162.0,0.93692942]
[1723340449313,0.00963552,61163.0,61162.0,0.95092942]
[1723340449540,0.000832,61163.0,61162.0,1.11474434]
[1723340449756,0.000832,61163.0,61162.0,1.5286373]
[1723340449932,0.000832,61163.0,61162.0,1.79764918]
[1723340450306,0.000832,61163.0,61162.0,1.5232296]
[1723340450516,0.000832,61163.0,61162.0,1.79764918]
[1723340450719,0.000832,61163.0,61162.0,1.61995355]
[1723340450915,0.000832,61163.0,61162.0,1.78364918]
[1723340451131,0.000832,61163.0,61162.0,1.96735671]
[1723340451336,0.000832,61163.0,61162.0,1.98035671]
[1723340451511,0.000832,61163.0,61162.0,1.81085336]
[1723340451711,0.000832,61163.0,61162.0,1.79685336]
[1723340451916,0.000832,61163.0,61162.0,2.21958314]
[1723340452118,0.000832,61163.0,61162.0,2.32187738]
[1723340452551,0.000832,61163.0,61162.0,2.04404052]
[1723340452753,0.000832,61163.0,61162.0,2.21374245]
[1723340453971,0.000832,61163.0,61162.0,2.00497912]
[1723340455898,0.000832,61163.0,61162.0,2.00498035]
[1723340456298,0.000832,61163.0,61162.0,1.83283896]
[1723340456714,0.000832,61163.0,61162.0,1.83283514]
[1723340456914,0.000832,61163.0,61162.0,1.71040423]
[1723340457725,0.000832,61163.0,61162.0,1.69640423]
[1723340458104,0.000832,61163.0,61162.0,1.95769658]
[1723340458305,0.000832,61163.0,61162.0,1.97169658]
[1723340458511,0.000832,61163.0,61162.0,1.98569658]
[1723340458834,0.000832,61163.0,61162.0,1.97169658]
[1723340459191,0.000832,61163.0,61162.0,1.98569658]
[1723340462391,0.000832,61163.0,61162.0,1.98592232]
[1723340462544,0.000832,61163.0,61162.0,2.21482232]
[1723340463774,0.000832,61163.0,61162.0,2.22082232]
[1723340464586,0.000832,61163.0,61162.0,2.20682232]
[1723340465344,0.000832,61163.0,61162.0,2.19282232]
[1723340465544,0.000832,61163.0,61162.0,2.20682232]
[1723340465771,0.000832,61163.0,61162.0,1.55355727]
[1723340465968,0.000832,61163.0,61162.0,2.08998378]
[1723340466207,0.000832,61163.0,61162.0,2.10398378]
[1723340466803,0.000832,61163.0,61162.0,2.11798378]
[1723340468362,0.000832,61163.0,61162.0,2.11798247]
[1723340469567,0.000832,61163.0,61162.0,2.11797918]
[1723340471268,0.000832,61163.0,61162.0,2.36207566]
[1723340471470,0.14812,61181.0,61162.0,2.36207566]
[1723340471471,0.00832,61181.0,61173.0,0.120429]
[1723340471798,0.00832,61181.0,61173.0,1.97270011]
[1723340472035,0.00832,61181.0,61173.0,2.44023253]
[1723340472266,0.00832,61181.0,61173.0,2.43041811]
[1723340472546,0.00832,61181.0,61173.0,2.18307633]
[1723340473106,0.00832,61181.0,61173.0,2.02714449]
[1723340473312,0.00832,61181.0,61173.0,2.19680077]
[1723340473706,0.00832,61181.0,61173.0,2.29990077]
[1723340474309,0.00832,61181.0,61173.0,2.46062946]
[1723340474890,0.0645,61180.0,61173.0,2.4606258]
[1723340475333,0.00832,61181.0,61173.0,2.4606258]
[1723340475492,0.00832,61181.0,61173.0,2.31390077]
[1723340475880,0.00832,61181.0,61173.0,2.32350611]
[1723340476534,0.00832,61181.0,61173.0,1.77337761]
[1723340476757,0.00832,61181.0,61173.0,2.49295909]
[1723340477160,0.00832,61181.0,61173.0,2.49295542]
[1723340477513,0.00832,61181.0,61173.0,2.5081519]
[1723340478216,0.00832,61181.0,61173.0,2.73162541]
[1723340478415,0.00832,61181.0,61173.0,2.51796289]
[1723340478753,0.00832,61181.0,61173.0,2.7370109]
[1723340478963,0.00832,61181.0,61173.0,2.5081519]
[1723340479944,0.00832,61181.0,61173.0,2.49295542]
[1723340480159,0.00832,61181.0,61173.0,2.32336779]
[1723340480362,0.00832,61181.0,61173.0,2.49301818]
[1723340480563,0.00832,61181.0,61173.0,2.21397112]
[1723340480805,0.00832,61181.0,61173.0,2.20797112]
[1723340481001,0.1399,61176.0,61173.0,2.06907112]
[1723340481322,0.1399,61176.0,61173.0,2.16672348]
[1723340482285,0.1399,61176.0,61173.0,2.06907112]
[1723340482509,0.1399,61176.0,61173.0,2.16671471]
[1723340483109,0.1399,61176.0,61173.0,2.15710937]
[1723340483513,0.1399,61176.0,61173.0,1.96306287]
[1723340483709,0.1399,61176.0,61173.0,1.96307996]
[1723340483929,0.1399,61176.0,61173.0,1.88983248]
[1723340485251,0.1399,61176.0,61173.0,1.79342517]
[1723340486375,0.0757,61179.0,61174.0,0.228854]
[1723340486604,0.0757,61179.0,61178.0,0.5721]
[1723340486810,0.0757,61179.0,61178.0,1.1004866]
[1723340487013,0.00832,61181.0,61180.0,0.800912]
[1723340487186,0.00832,61181.0,61180.0,1.32928511]
[1723340487339,0.00832,61181.0,61180.0,1.35228511]
[1723340489305,0.00832,61181.0,61180.0,1.42608511]
[1723340489653,0.00832,61181.0,61180.0,1.44008511]
[1723340490254,0.00832,61181.0,61180.0,1.37828511]
[1723340490639,0.00832,61181.0,61180.0,1.37828189]
[1723340490924,0.00832,61181.0,61180.0,1.37828132]
[1723340491249,0.00832,61181.0,61180.0,1.44614118]
[1723340491604,0.00832,61181.0,61180.0,1.54614118]
[1723340491812,0.00832,61181.0,61180.0,2.21429982]
[1723340492000,0.00832,61181.0,61180.0,2.39559841]
[1723340492764,0.00832,61181.0,61180.0,2.36959841]
[1723340492963,0.00832,61181.0,61180.0,2.38359841]
[1723340493521,0.00832,61181.0,61180.0,2.39759841]
[1723340493923,0.00832,61181.0,61180.0,2.38359841]
[1723340494344,0.00832,61181.0,61180.0,2.39759841]
[1723340494725,0.00832,61181.0,61180.0,2.39259841]
[1723340496388,0.0001,61189.0,61180.0,2.53899195]
[1723340496575,0.0001,61189.0,61188.0,1.34078998]
[1723340496760,0.0001,61189.0,61188.0,2.07751995]
[1723340497023,0.0001,61189.0,61188.0,2.00434297]
[1723340497398,0.0001,61189.0,61188.0,2.07750997]
[1723340497911,0.0001,61189.0,61188.0,2.09270645]
[1723340498130,0.0001,61189.0,61188.0,2.07750997]
[1723340498326,0.0001,61189.0,61188.0,2.00434297]
[1723340498534,0.0001,61189.0,61188.0,2.07750675]
[1723340499364,0.0001,61189.0,61188.0,1.95814992]
[1723340499782,0.0001,61189.0,61188.0,1.58498658]
[1723340499986,0.0001,61189.0,61188.0,1.95213191]
[1723340500407,0.0001,61189.0,61188.0,2.01490173]
[1723340500731,0.0001,61189.0,61188.0,1.96613191]
[1723340501707,0.0001,61189.0,61188.0,1.97213191]
[1723340502250,0.0001,61189.0,61188.0,1.98202212]
[1723340502954,0.0001,61189.0,61188.0,1.9832186]
[1723340503198,0.0001,61189.0,61188.0,2.05639747]
[1723340503381,0.0001,61189.0,61188.0,2.04120099]
[1723340503597,0.0001,61189.0,61188.0,2.04119636]
[1723340503800,0.0001,61189.0,61188.0,2.05519636]
[1723340504396,0.0001,61189.0,61188.0,2.04119636]
[1723340504842,0.0001,61189.0,61188.0,1.477397]
[1723340505047,0.0001,61189.0,61188.0,1.491397]
[1723340505290,0.0001,61189.0,61188.0,1.477397]
[1723340505789,0.0001,61189.0,61188.0,1.491397]
[1723340506001,0.0001,61189.0,61188.0,1.81845558]
[1723340506381,0.0001,61189.0,61188.0,1.92070054]
[1723340506784,0.000932,61189.0,61188.0,1.92070054]
[1723340507232,0.000932,61189.0,61188.0,2.15816877]
[1723340507454,0.000932,61189.0,61188.0,1.77726229]
[1723340507667,0.000932,61189.0,61188.0,1.70408342]
[1723340507885,0.000932,61189.0,61188.0,1.60088342]
[1723340508071,0.000932,61189.0,61188.0,1.69845525]
[1723340508808,0.000932,61189.0,61188.0,1.52883492]
[1723340509489,0.000932,61189.0,61188.0,1.90957192]
[1723340509697,0.000932,61189.0,61188.0,2.07918895]
[1723340510695,0.142832,61189.0,61188.0,1.75268595]
[1723340510902,0.142832,61189.0,61188.0,1.26486539]
[1723340511302,0.142832,61189.0,61188.0,1.43449228]
[1723340511506,0.142832,61189.0,61188.0,1.18302536]
[1723340511662,0.142832,61189.0,61188.0,1.23687558]
[1723340511867,0.142832,61189.0,61188.0,1.25087558]
[1723340512487,0.142832,61189.0,61188.0,1.26487558]
[1723340512869,0.142832,61189.0,61188.0,1.25087558]
[1723340513298,0.142832,61189.0,61188.0,1.26487558]
[1723340514493,0.142832,61189.0,61188.0,1.31370381]
[1723340515230,0.142832,61189.0,61188.0,1.3137115]
[1723340515547,0.142832,61189.0,61188.0,1.26488327]
[1723340516055,0.142832,61189.0,61188.0,1.51541161]
[1723340516257,0.142832,61189.0,61188.0,1.61180482]
[1723340516459,0.142832,61189.0,61188.0,1.70937665]
[1723340516749,0.142832,61189.0,61188.0,1.61180482]
[1723340516958,0.142832,61189.0,61188.0,1.5977823]
[1723340517363,0.142832,61189.0,61188.0,1.72005872]
[1723340517564,0.142832,61189.0,61188.0,1.5837823]
[1723340517951,0.142832,61189.0,61188.0,1.8265853]
[1723340518126,0.142832,61189.0,61188.0,1.8495853]
[1723340518312,0.080932,61189.0,61188.0,1.8635853]
[1723340518716,0.080932,61189.0,61188.0,1.86385856]
[1723340519030,0.000932,61189.0,61188.0,1.86385856]
[1723340519253,0.000932,61189.0,61188.0,1.96610658]
[1723340521338,0.000932,61189.0,61188.0,1.96619942]
[1723340525405,0.000932,61189.0,61188.0,1.96646607]
[1723340528454,0.000932,61189.0,61188.0,1.41537594]
[1723340528657,0.000932,61189.0,61188.0,1.96645587]
[1723340529399,0.000932,61189.0,61188.0,2.26425824]
[1723340529549,0.000932,61189.0,61188.0,2.02665587]
[1723340529764,0.000932,61189.0,61188.0,2.15946158]
[1723340530010,0.000932,61189.0,61188.0,2.11326158]
[1723340530183,0.000932,61189.0,61188.0,1.96645587]
[1723340530384,0.000932,61189.0,61188.0,2.11326158]
[1723340530801,0.000932,61189.0,61188.0,2.09926158]
[1723340531252,0.000932,61189.0,61188.0,2.22326158]
[1723340531386,0.000932,61189.0,61188.0,2.19929555]
[1723340531585,0.000932,61189.0,61188.0,2.05245587]
[1723340532006,0.000932,61189.0,61188.0,2.05282294]
[1723340532225,0.000932,61189.0,61188.0,2.21366474]
[1723340532602,0.000932,61189.0,61188.0,2.03882294]
[1723340532801,0.000932,61189.0,61188.0,2.05282294]
[1723340533037,0.000932,61189.0,61188.0,2.06682294]
[1723340533261,0.000932,61189.0,61188.0,2.05282294]
[1723340534561,0.000932,61189.0,61188.0,2.03882294]
[1723340534863,0.000932,61189.0,61188.0,2.06682294]
[1723340535059,0.000932,61189.0,61188.0,2.05282294]
[1723340535580,0.000932,61189.0,61188.0,2.05282279]
[1723340535946,0.000932,61189.0,61188.0,1.67099353]
[1723340536149,0.000932,61189.0,61188.0,2.03874738]
[1723340536351,0.000932,61189.0,61188.0,2.05274738]
[1723340536646,0.000932,61189.0,61188.0,2.06674738]
[1723340537710,0.000932,61189.0,61188.0,2.05274738]
[1723340537890,0.000932,61189.0,61188.0,2.06674738]
[1723340538304,0.000932,61189.0,61188.0,2.03874738]
[1723340538704,0.000932,61189.0,61188.0,2.26965788]
[1723340539110,0.000932,61189.0,61188.0,2.20190842]
[1723340539402,0.000932,61189.0,61188.0,2.26975438]
[1723340539785,0.000932,61189.0,61188.0,2.28375438]
[1723340540301,0.000932,61189.0,61188.0,2.26975438]
[1723340541206,0.000932,61189.0,61188.0,2.25575438]
[1723340541570,0.000932,61189.0,61188.0,2.28375438]
[1723340541802,0.000932,61189.0,61188.0,2.26975438]
[1723340541971,0.000932,61189.0,61188.0,2.25575438]
[1723340542176,0.000932,61189.0,61188.0,2.26975438]
[1723340542410,0.000932,61189.0,61188.0,2.28375438]
[1723340542608,0.000932,61189.0,61188.0,1.73238401]
[1723340542745,0.000932,61189.0,61188.0,2.28374025]
[1723340543233,0.000932,61189.0,61188.0,2.06673218]
[1723340543556,0.000932,61189.0,61188.0,2.28374025]
[1723340543797,0.000932,61189.0,61188.0,2.28371874]
[1723340544508,0.000932,61189.0,61188.0,2.29352632]
[1723340546149,0.000932,61189.0,61188.0,2.04625692]
[1723340546347,0.000932,61189.0,61188.0,2.29344145]
[1723340546494,0.000932,61189.0,61188.0,2.29344147]
[1723340546697,0.000932,61189.0,61188.0,1.81001574]
[1723340546916,0.000932,61189.0,61188.0,2.29343909]
[1723340547122,0.000932,61189.0,61188.0,2.30343909]
[1723340547578,0.000932,61189.0,61188.0,2.28497442]
[1723340547854,0.000932,61189.0,61188.0,2.31525434]
[1723340548009,0.000932,61189.0,61188.0,2.29125434]
[1723340548242,0.000932,61189.0,61188.0,2.29544803]
[1723340548427,0.000932,61189.0,61188.0,2.29125373]
[1723340548629,0.000932,61189.0,61188.0,2.50817443]
[1723340549091,0.000932,61189.0,61188.0,2.52217443]
[1723340549316,0.000932,61189.0,61188.0,2.51236873]
[1723340549534,0.000932,61189.0,61188.0,2.49836873]
[1723340549974,0.000932,61189.0,61188.0,2.51236873]
[1723340550185,0.000932,61189.0,61188.0,2.49836873]
[1723340550868,0.000932,61189.0,61188.0,2.28144803]
[1723340551056,0.000932,61189.0,61188.0,2.49837032]
[1723340551817,0.000932,61189.0,61188.0,2.51237032]
[1723340552333,0.000932,61189.0,61188.0,2.29544803]
[1723340552849,0.000932,61189.0,61188.0,2.28144803]
[1723340553028,0.000932,61189.0,61188.0,2.51236742]
[1723340553443,0.000932,61189.0,61188.0,1.94709833]
[1723340553626,0.000932,61189.0,61188.0,2.49788907]
[1723340553819,0.000932,61189.0,61188.0,2.51188907]
[1723340554440,0.000932,61189.0,61188.0,2.28096968]
[1723340554675,0.000932,61189.0,61188.0,2.50788391]
[1723340554849,0.000932,61189.0,61188.0,2.27696968]
[1723340555204,0.000932,61189.0,61188.0,2.29096968]
[1723340555762,0.000932,61189.0,61188.0,2.29496968]
[1723340556335,0.000932,61189.0,61188.0,2.51187443]
[1723340556538,0.000932,61189.0,61188.0,2.51186754]
[1723340557202,0.000932,61189.0,61188.0,2.12561752]
[1723340557333,0.000932,61189.0,61188.0,2.5121291]
[1723340557530,0.000932,61189.0,61188.0,1.9610768]
[1723340557917,0.000932,61189.0,61188.0,2.5121291]
[1723340558433,0.000932,61189.0,61188.0,2.51213413]
[1723340559580,0.000932,61189.0,61188.0,2.29523124]
[1723340560852,0.000932,61189.0,61188.0,2.29504884]
[1723340562910,0.000932,61189.0,61188.0,2.28104884]
[1723340563116,0.000932,61189.0,61188.0,2.26704884]
[1723340563318,0.000932,61189.0,61188.0,2.29504884]
[1723340564385,0.000932,61189.0,61188.0,2.05759057]
[1723340564574,0.000932,61189.0,61188.0,2.29504791]
[1723340564957,0.000932,61189.0,61188.0,2.28104791]
[1723340565541,0.000932,61189.0,61188.0,2.29504791]
[1723340565736,0.000932,61189.0,61188.0,2.28104791]
[1723340565942,0.000932,61189.0,61188.0,2.29504791]
[1723340566852,0.147132,61189.0,61188.0,2.26025687]
[1723340567259,0.147132,61189.0,61188.0,2.04324491]
[1723340567895,0.147132,61189.0,61188.0,1.87363252]
[1723340568109,0.147132,61189.0,61188.0,2.04265837]
[1723340568507,0.147132,61189.0,61188.0,2.2122742]
[1723340570403,0.147132,61189.0,61188.0,2.42929807]
[1723340570831,0.147132,61189.0,61188.0,2.19183729]
[1723340571135,0.147132,61189.0,61188.0,2.25898556]
[1723340571684,0.147132,61189.0,61188.0,2.36075448]
[1723340571949,0.147132,61189.0,61188.0,2.36080026]
[1723340572360,0.147132,61189.0,61188.0,1.70944559]
[1723340572572,0.147132,61189.0,61188.0,2.25913542]
[1723340572998,0.147132,61189.0,61188.0,2.04206577]
[1723340573462,0.082332,61189.0,61188.0,2.04206577]
[1723340575474,0.000932,61189.0,61188.0,2.04206577]
[1723340577532,0.000932,61189.0,61188.0,2.0420657]
[1723340577862,0.000932,61189.0,61188.0,2.25962077]
[1723340578061,0.000932,61189.0,61188.0,2.04252846]
[1723340578203,0.000932,61189.0,61188.0,2.25962622]
[1723340580727,0.000932,61189.0,61188.0,1.7094737]
[1723340580923,0.000932,61189.0,61188.0,2.04241796]
[1723340581376,0.000932,61189.0,61188.0,1.56022186]
[1723340581545,0.000932,61189.0,61188.0,2.0423142]
[1723340582803,0.000932,61189.0,61188.0,2.04239023]
[1723340583743,0.000932,61189.0,61188.0,1.49237594]
[1723340583939,0.000932,61189.0,61188.0,2.04240196]
[1723340587254,0.000932,61189.0,61188.0,1.49237594]
[1723340587531,0.000932,61189.0,61188.0,2.04241018]
[1723340589241,0.000932,61189.0,61188.0,1.87279537]
[1723340589441,0.000932,61189.0,61188.0,2.04241027]
[1723340590855,0.000932,61189.0,61188.0,1.87279537]
[1723340591062,0.000932,61189.0,61188.0,1.5602219]
[1723340591265,0.000932,61189.0,61188.0,1.87280268]
[1723340591471,0.000932,61189.0,61188.0,2.25951063]
[1723340592835,0.077632,61189.0,61188.0,2.25951063]
[1723340593612,0.077632,61189.0,61188.0,2.04246163]
[1723340594628,0.077632,61189.0,61188.0,1.49237594]
[1723340594824,0.077632,61189.0,61188.0,2.04220963]
[1723340595682,0.077632,61189.0,61188.0,2.2592574]
[1723340595897,0.077632,61189.0,61188.0,2.04220963]
[1723340596227,0.000932,61189.0,61188.0,2.04220963]
[1723340596592,0.000932,61189.0,61188.0,2.2592574]
[1723340596795,0.000932,61189.0,61188.0,2.04220963]
[1723340597433,0.000932,61189.0,61188.0,2.2592574]
[1723340597785,0.000932,61189.0,61188.0,2.04220963]
[1723340597983,0.000932,61189.0,61188.0,2.2592574]
[1723340598209,0.000932,61189.0,61188.0,2.25941638]
[1723340598676,0.000932,61189.0,61188.0,2.28240657]
[1723340600995,0.000932,61189.0,61188.0,2.06536861]
[1723340601154,0.000932,61189.0,61188.0,2.28241218]
[1723340601786,0.000932,61189.0,61188.0,1.73241951]
[1723340601957,0.000932,61189.0,61188.0,2.06538077]
[1723340602372,0.000932,61189.0,61188.0,2.28243093]
[1723340602570,0.000932,61189.0,61188.0,2.06538077]
[1723340603291,0.000932,61189.0,61188.0,2.28243093]
[1723340603475,0.000932,61189.0,61188.0,2.28243469]
[1723340603809,0.000932,61189.0,61188.0,2.29243469]
[1723340604134,0.000932,61189.0,61188.0,2.35903279]
[1723340604538,0.000932,61189.0,61188.0,2.14198077]
[1723340604972,0.000932,61189.0,61188.0,2.13198077]
[1723340605261,0.000932,61189.0,61188.0,2.06328077]
[1723340605650,0.000932,61189.0,61188.0,2.06538066]
[1723340605875,0.000932,61189.0,61188.0,2.2824437]
[1723340606274,0.000932,61189.0,61188.0,2.06538066]
[1723340606275,0.080832,61189.0,61188.0,2.06538066]
[1723340606478,0.080832,61189.0,61188.0,2.28245605]
[1723340606618,0.080832,61189.0,61188.0,2.06538066]
[1723340607287,0.080832,61189.0,61188.0,2.21375309]
[1723340607509,0.080832,61189.0,61188.0,1.99668066]
[1723340607676,0.080832,61189.0,61188.0,2.06538066]
[1723340608426,0.080832,61189.0,61188.0,2.06538119]
[1723340610172,0.080832,61189.0,61188.0,1.51537594]
[1723340610376,0.080832,61189.0,61188.0,2.06536552]
[1723340612808,0.080832,61189.0,61188.0,2.06534806]
[1723340613266,0.000932,61189.0,61188.0,2.06534806]
[1723340613423,0.000932,61189.0,61188.0,2.06534253]
[1723340613834,0.000932,61189.0,61188.0,2.06533921]
[1723340614626,0.000932,61189.0,61188.0,2.06534638]
[1723340615069,0.000932,61189.0,61188.0,2.07534638]
[1723340616657,0.000932,61189.0,61188.0,2.07595202]
[1723340619372,0.081,61204.0,61197.0,0.1563]
[1723340619578,0.1473,61206.0,61197.0,2.17229635]
[1723340619838,0.1473,61206.0,61197.0,2.18409902]
[1723340620057,0.1473,61206.0,61197.0,1.70135694]
[1723340620259,0.15162,61198.0,61197.0,1.9560429]
[1723340620558,0.15162,61198.0,61197.0,2.02894211]
[1723340620755,0.15162,61198.0,61197.0,2.04294211]
[1723340620989,0.15162,61198.0,61197.0,2.02894211]
[1723340621143,0.08932,61198.0,61197.0,2.01494211]
[1723340621342,0.08932,61198.0,61197.0,2.02894211]
[1723340621753,0.00832,61198.0,61197.0,2.02894211]
[1723340621927,0.00832,61198.0,61197.0,2.10894211]
[1723340622128,0.00832,61198.0,61197.0,2.20824211]
[1723340622492,0.00832,61198.0,61197.0,2.43486403]
[1723340623076,0.00832,61198.0,61197.0,2.42486403]
[1723340623281,0.00832,61198.0,61197.0,2.19424211]
[1723340623690,0.00832,61198.0,61197.0,2.22163637]
[1723340624096,0.00832,61198.0,61197.0,1.67103083]
[1723340624297,0.00832,61198.0,61197.0,2.15293748]
[1723340624653,0.00832,61198.0,61197.0,2.22163748]
[1723340625745,0.00832,61198.0,61197.0,2.23143893]
[1723340626498,0.00832,61198.0,61197.0,2.21743893]
[1723340626905,0.00832,61198.0,61197.0,2.23143893]
[1723340627309,0.00832,61198.0,61197.0,2.22163641]
[1723340630327,0.00832,61198.0,61197.0,2.19363641]
[1723340630531,0.00832,61198.0,61197.0,2.06133641]
[1723340630731,0.00832,61198.0,61197.0,1.83776537]
[1723340630933,0.00832,61198.0,61197.0,2.06118284]
[1723340631522,0.00832,61198.0,61197.0,2.07518284]
[1723340632443,0.00832,61198.0,61197.0,2.07503294]
[1723340632846,0.00832,61198.0,61197.0,2.06103294]
[1723340633045,0.00832,61198.0,61197.0,2.04703294]
[1723340633418,0.00832,61198.0,61197.0,2.06103294]
[1723340634148,0.00832,61198.0,61197.0,2.07503294]
[1723340634355,0.14742,61198.0,61197.0,2.00633119]
[1723340634555,0.14742,61198.0,61197.0,2.05203119]
[1723340634760,0.14742,61198.0,61197.0,1.39948281]
[1723340634961,0.14742,61198.0,61197.0,1.94968828]
[1723340635379,0.14742,61198.0,61197.0,1.78009755]
[1723340635589,0.14742,61198.0,61197.0,1.94968715]
[1723340636196,0.14742,61198.0,61197.0,1.98321731]
[1723340636414,0.14742,61198.0,61197.0,1.88098715]
[1723340636627,0.14742,61198.0,61197.0,1.94968715]
[1723340638071,0.14742,61198.0,61197.0,1.88098715]
[1723340638262,0.14742,61198.0,61197.0,1.94968713]
[1723340639389,0.00832,61198.0,61197.0,2.05191824]
[1723340640483,0.00832,61198.0,61197.0,2.20351824]
[1723340640721,0.00832,61198.0,61197.0,2.22651824]
[1723340641074,0.00832,61198.0,61197.0,2.07466555]
[1723340641273,0.00832,61198.0,61197.0,2.4651665]
[1723340641472,0.00832,61198.0,61197.0,2.2363975]
[1723340641882,0.00832,61198.0,61197.0,2.2263975]
[1723340642280,0.00832,61198.0,61197.0,2.2123975]
[1723340642478,0.00832,61198.0,61197.0,2.2263975]
[1723340642726,0.00832,61198.0,61197.0,2.4651665]
[1723340642927,0.00832,61198.0,61197.0,2.44136784]
[1723340643087,0.00832,61198.0,61197.0,2.42736784]
[1723340643436,0.00832,61198.0,61197.0,2.44136784]
[1723340643771,0.00832,61198.0,61197.0,2.45536784]
[1723340644193,0.00832,61198.0,61197.0,2.43851688]
[1723340644395,0.00832,61198.0,61197.0,2.4233204]
[1723340644597,0.00832,61198.0,61197.0,2.4373204]
[1723340644838,0.00832,61198.0,61197.0,2.42332039]
[1723340645241,0.00832,61198.0,61197.0,2.43164039]
[1723340645446,0.00832,61198.0,61197.0,2.46083687]
[1723340645853,0.00832,61198.0,61197.0,2.67720554]
[1723340646061,0.00832,61198.0,61197.0,2.66320554]